bitfinex/quotes_BTCUSD_20251012
["timestamp","ask_amount","ask_price","bid_price","bid_amount"]
[1760242901052,0.52886123,111430.0,111420.0,0.25326098]
[1760242901486,0.52886123,111430.0,111420.0,0.21915098]
[1760242902358,0.52886123,111430.0,111420.0,0.001]
[1760242902569,0.52886123,111430.0,111420.0,0.02184]
[1760242904535,0.52886123,111430.0,111420.0,0.03979009]
[1760242905168,0.52886123,111430.0,111420.0,0.01895009]
[1760242905383,0.52886123,111430.0,111420.0,0.001]
[1760242906464,0.52886123,111430.0,111400.0,0.18850192]
[1760242906465,0.17951709,111410.0,111400.0,0.20546192]
[1760242906666,0.17951289,111420.0,111400.0,0.22630192]
[1760242907016,0.17951289,111420.0,111400.0,0.25713192]
[1760242907418,0.17951709,111410.0,111400.0,0.22630192]
[1760242907642,0.17951709,111410.0,111400.0,0.22730192]
[1760242907850,0.17951289,111420.0,111400.0,0.25813192]
[1760242908055,0.17951289,111420.0,111410.0,0.01696]
[1760242908669,0.17951289,111420.0,111410.0,0.0378]
[1760242908892,0.17951289,111420.0,111400.0,0.23729192]
[1760242909092,0.17951709,111410.0,111400.0,0.0388]
[1760242909494,0.17951709,111410.0,111400.0,0.0378]
[1760242909692,0.17951709,111410.0,111400.0,0.18053321]
[1760242909914,0.17951709,111410.0,111400.0,0.001]
[1760242910794,0.51951709,111410.0,111400.0,0.001]
[1760242911907,0.52010257,111410.0,111400.0,0.001]
[1760242914118,0.55403682,111410.0,111400.0,0.001]
[1760242914325,0.52010257,111410.0,111400.0,0.001]
[1760242914563,0.17953321,111400.0,111390.0,0.00096349]
[1760242914764,0.51953321,111400.0,111390.0,0.00096349]
[1760242916011,0.51953321,111400.0,111390.0,0.02180349]
[1760242916220,0.51953321,111400.0,111390.0,0.00096349]
[1760242916656,0.51953321,111400.0,111390.0,0.03976349]
[1760242919129,0.51953321,111400.0,111390.0,0.07059349]
[1760242920344,0.51953321,111400.0,111390.0,0.06959349]
[1760242920553,0.00058548,111410.0,111400.0,0.17953321]
[1760242920789,0.18010257,111410.0,111400.0,0.06973]
[1760242921465,0.52010257,111410.0,111400.0,0.06973]
[1760242921687,0.34058548,111410.0,111400.0,0.24926321]
[1760242922097,0.52010257,111410.0,111400.0,0.24926321]
[1760242922996,0.52010257,111410.0,111400.0,0.25026321]
[1760242923198,0.52010257,111410.0,111400.0,0.24926321]
[1760242923497,0.52010257,111410.0,111400.0,0.25026321]
[1760242924055,0.34058548,111410.0,111400.0,0.25026321]
[1760242926171,0.52010257,111410.0,111400.0,0.25026321]
[1760242926555,0.52010257,111410.0,111400.0,0.07073]
[1760242926776,0.52010257,111410.0,111400.0,0.001]
[1760242928024,0.52010257,111410.0,111400.0,0.25026321]
[1760242928231,0.34058548,111410.0,111400.0,0.25026321]
[1760242929744,0.34058548,111410.0,111400.0,0.24926321]
[1760242930165,0.34058548,111410.0,111400.0,0.25026321]
[1760242930399,0.34058548,111410.0,111400.0,0.24926321]
[1760242930603,0.34058548,111410.0,111400.0,0.25026321]
[1760242931533,0.00058548,111410.0,111400.0,0.25026321]
[1760242935254,0.00058548,111410.0,111400.0,0.69279625]
[1760242936456,0.00058548,111410.0,111400.0,0.24926321]
[1760242936858,0.00058548,111410.0,111400.0,0.25126321]
[1760242937077,0.00058548,111410.0,111400.0,0.69379625]
[1760242937933,0.00058548,111410.0,111400.0,0.69479625]
[1760242939694,0.00058548,111410.0,111400.0,0.25226321]
[1760242939924,0.00058548,111410.0,111400.0,0.69479625]
[1760242943167,0.00058548,111410.0,111400.0,0.25226321]
[1760242946469,0.18845974,111430.0,111410.0,0.17950597]
[1760242946688,0.18845974,111430.0,111420.0,0.03729]
[1760242947257,0.18845974,111430.0,111420.0,0.24923098]
[1760242948356,0.18845974,111430.0,111420.0,0.25023098]
[1760242948890,0.52845974,111430.0,111420.0,0.25023098]
[1760242951748,0.34,111430.0,111420.0,0.21779098]
[1760242951964,0.51948487,111430.0,111420.0,0.24985098]
[1760242952395,0.52065558,111430.0,111420.0,0.24985098]
[1760242955495,0.52065558,111430.0,111420.0,0.21779098]
[1760242955897,0.34117071,111430.0,111420.0,0.21779098]
[1760242956119,0.34117071,111430.0,111420.0,0.24985098]
[1760242957083,0.00117071,111430.0,111420.0,0.24985098]
[1760242958866,0.00117071,111430.0,111420.0,0.24885098]
[1760242958990,0.00117071,111430.0,111420.0,0.24985098]
[1760242968844,0.17948487,111430.0,111420.0,0.24985098]
[1760242969053,0.17948487,111430.0,111420.0,0.001]
[1760242969268,0.17948487,111430.0,111420.0,0.21835098]
[1760242969458,0.17946918,111440.0,111420.0,0.25119098]
[1760242970014,0.17946999,111440.0,111430.0,0.0496]
[1760242970507,0.17946999,111440.0,111430.0,0.03785]
[1760242971258,0.51946999,111440.0,111430.0,0.07069]
[1760242971497,0.51946999,111440.0,111430.0,0.03785]
[1760242971695,0.51946999,111440.0,111430.0,0.03885]
[1760242972032,0.51946999,111440.0,111430.0,0.05679848]
[1760242972232,0.51946999,111440.0,111430.0,0.08963848]
[1760242972380,0.51946999,111440.0,111430.0,0.07169]
[1760242973511,0.51946999,111440.0,111430.0,0.25117487]
[1760242974356,0.17946999,111440.0,111430.0,0.25117487]
[1760242974557,0.51946999,111440.0,111430.0,0.25117487]
[1760242974732,0.34,111440.0,111430.0,0.25117487]
[1760242975732,0.34058524,111440.0,111430.0,0.25117487]
[1760242975893,0.00058524,111440.0,111430.0,0.25117487]
[1760242976790,0.00058524,111440.0,111430.0,0.25017487]
[1760242976991,0.00058524,111440.0,111430.0,0.25117487]
[1760242977659,0.00058524,111440.0,111430.0,0.69351134]
[1760242979287,0.00058524,111440.0,111430.0,0.25117487]
[1760242979538,0.00058524,111440.0,111430.0,0.69351134]
[1760242980495,0.00058524,111440.0,111430.0,0.69551134]
[1760242981723,0.00058524,111440.0,111430.0,0.25317487]
[1760242981941,0.00058524,111440.0,111430.0,0.69551134]
[1760242982163,0.00058524,111440.0,111430.0,0.25317487]
[1760242982542,0.00058524,111440.0,111430.0,0.69551134]
[1760242987108,0.00058524,111440.0,111430.0,0.25317487]
[1760242987328,0.00058524,111440.0,111430.0,0.69551134]
[1760242989803,0.00058524,111440.0,111430.0,0.72566324]
[1760242990021,0.0002,111450.0,111440.0,0.17946877]
[1760242990258,0.0002,111450.0,111440.0,0.32102711]
[1760242990483,0.0002,111470.0,111460.0,0.17943656]
[1760242990704,0.0102,111480.0,111470.0,0.17942047]
[1760242990917,0.0102,111480.0,111470.0,0.75530103]
[1760242991362,0.0102,111480.0,111470.0,0.69091694]
[1760242992273,0.0102,111480.0,111470.0,0.24858047]
[1760242992497,0.0102,111480.0,111470.0,0.69091694]
[1760242993282,0.0102,111480.0,111470.0,0.69191694]
[1760242994939,0.0102,111480.0,111470.0,0.24958047]
[1760242995292,0.0102,111480.0,111470.0,0.69191694]
[1760242995673,0.01254005,111480.0,111470.0,0.24958047]
[1760242996663,0.19194442,111480.0,111470.0,0.07016]
[1760242997703,0.19194442,111480.0,111470.0,0.03934]
[1760242997905,0.19194442,111480.0,111470.0,0.001]
[1760242998103,0.01254005,111480.0,111470.0,0.24858047]
[1760242998712,0.19194442,111480.0,111470.0,0.24858047]
[1760242999107,0.01254005,111480.0,111470.0,0.24858047]
[1760242999712,0.19194442,111480.0,111470.0,0.24858047]
[1760242999943,0.01254005,111480.0,111470.0,0.24858047]
[1760243000535,0.19194442,111480.0,111470.0,0.24858047]
[1760243001592,0.01254005,111480.0,111470.0,0.24858047]
[1760243004557,0.01254005,111480.0,111470.0,0.69091694]
[1760243004745,0.01254005,111480.0,111470.0,0.24858047]
[1760243005153,0.01254005,111480.0,111470.0,0.69091694]
[1760243005355,0.01254005,111480.0,111470.0,0.24858047]
[1760243013545,0.01254005,111480.0,111470.0,0.69091694]
[1760243015248,0.01254005,111480.0,111470.0,0.24858047]
[1760243015457,0.01254005,111480.0,111470.0,0.69091694]
[1760243016695,0.01254005,111480.0,111470.0,0.69191694]
[1760243017309,0.01254005,111480.0,111470.0,0.75630103]
[1760243021156,0.01254005,111480.0,111470.0,0.31396456]
[1760243021782,0.01254005,111480.0,111470.0,0.75630103]
[1760243024640,0.01254005,111480.0,111470.0,0.31396456]
[1760243024847,0.01254005,111480.0,111470.0,0.75630103]
[1760243025727,0.01254005,111480.0,111470.0,0.31396456]
[1760243026057,0.01254005,111480.0,111470.0,0.75630103]
[1760243026610,0.01254005,111480.0,111470.0,0.31396456]
[1760243026745,0.01254005,111480.0,111470.0,0.75630103]
[1760243027920,0.01254005,111480.0,111470.0,0.31396456]
[1760243028868,1.6204613,111500.0,111480.0,0.17940437]
[1760243030333,0.17938828,111490.0,111470.0,0.20452149]
[1760243030480,0.17938828,111490.0,111480.0,0.17940437]
[1760243031170,1.6214613,111500.0,111480.0,0.21573437]
[1760243031339,0.17938828,111490.0,111480.0,0.17940437]
[1760243031742,1.6204613,111500.0,111480.0,0.19930437]
[1760243031946,1.6474472,111500.0,111480.0,0.21573437]
[1760243032151,1.6474472,111500.0,111480.0,0.24692437]
[1760243032962,1.6484472,111500.0,111480.0,0.21573437]
[1760243033366,1.6484472,111500.0,111480.0,0.24692437]
[1760243033819,0.17938828,111490.0,111480.0,0.21573437]
[1760243034456,1.6484472,111500.0,111480.0,0.24692437]
[1760243034683,0.00058485,111490.0,111480.0,0.24692437]
[1760243035504,0.00058485,111490.0,111480.0,0.21573437]
[1760243035662,0.00058485,111490.0,111480.0,0.17940437]
[1760243035863,0.17997313,111490.0,111480.0,0.17940437]
[1760243036065,0.00058485,111490.0,111480.0,0.17940437]
[1760243037249,0.00058485,111490.0,111480.0,0.21573437]
[1760243037412,0.00058485,111490.0,111480.0,0.17940437]
[1760243038499,0.00058485,111490.0,111480.0,0.19930437]
[1760243039150,0.00058485,111490.0,111480.0,0.21573437]
[1760243039914,0.17997313,111490.0,111480.0,0.21573437]
[1760243040117,0.17997313,111490.0,111470.0,0.26986817]
[1760243040320,0.17997313,111490.0,111470.0,0.28976817]
[1760243040640,0.17997313,111490.0,111470.0,0.32095817]
[1760243043288,0.17940437,111480.0,111470.0,0.06534668]
[1760243043492,0.51940437,111480.0,111470.0,0.06534668]
[1760243043697,0.51940437,111480.0,111470.0,0.00096259]
[1760243043897,0.54639471,111480.0,111470.0,0.00096259]
[1760243045301,0.54739471,111480.0,111470.0,0.03813259]
[1760243045504,0.54739471,111480.0,111470.0,0.06970259]
[1760243045690,0.54739471,111480.0,111470.0,0.03813259]
[1760243046154,0.54739471,111480.0,111470.0,0.00096259]
[1760243046287,0.54739471,111480.0,111470.0,0.02183259]
[1760243047434,0.54739471,111480.0,111470.0,0.00096259]
[1760243048051,0.54739471,111480.0,111470.0,0.02183259]
[1760243048420,0.54739471,111480.0,111470.0,0.00096259]
[1760243048625,0.62013149,111480.0,111470.0,0.00096259]
[1760243049050,0.54739471,111480.0,111470.0,0.00096259]
[1760243052530,0.54743471,111480.0,111470.0,0.00096259]
[1760243055497,0.60156246,111480.0,111470.0,0.00096259]
[1760243056008,0.57041056,111480.0,111470.0,0.00096259]
[1760243056354,0.57141056,111480.0,111470.0,0.00096259]
[1760243058093,0.64654893,111480.0,111470.0,0.00096259]
[1760243058795,0.67670083,111480.0,111470.0,0.00096259]
[1760243060126,0.54957237,111470.0,111460.0,0.00049851]
[1760243060532,0.57354822,111470.0,111460.0,0.00049851]
[1760243060733,0.60054718,111470.0,111460.0,0.00049851]
[1760243060937,0.68616017,111470.0,111460.0,0.00049851]
[1760243061289,0.60054718,111470.0,111460.0,0.00049851]
[1760243062303,0.60154718,111470.0,111460.0,0.00049851]
[1760243063064,0.39197481,111470.0,111460.0,0.00049851]
[1760243063271,0.57139528,111470.0,111460.0,0.00049851]
[1760243063880,0.57039528,111470.0,111460.0,0.00049851]
[1760243064060,0.54641943,111470.0,111460.0,0.00049851]
[1760243064263,0.63677942,111470.0,111460.0,0.00049851]
[1760243064648,0.56419304,111470.0,111460.0,0.00049851]
[1760243065574,0.56419304,111470.0,111460.0,0.00108356]
[1760243065869,0.58816889,111470.0,111460.0,0.00108356]
[1760243067125,0.61832079,111470.0,111460.0,0.00108356]
[1760243070672,0.62670932,111470.0,111460.0,0.00108356]
[1760243071149,0.70992094,111470.0,111460.0,0.00108356]
[1760243073075,0.72925701,111470.0,111460.0,0.00108356]
[1760243074906,0.64604539,111470.0,111460.0,0.00108356]
[1760243076959,0.64504539,111470.0,111460.0,0.00108356]
[1760243077383,0.64704539,111470.0,111460.0,0.00108356]
[1760243078268,0.67123791,111470.0,111460.0,0.00108356]
[1760243080572,0.67124785,111470.0,111460.0,1e-08]
[1760243080776,4.97257508,111470.0,111460.0,1e-08]
[1760243080950,4.97338255,111470.0,111460.0,1e-08]
[1760243081587,0.64726584,111470.0,111460.0,1e-08]
[1760243082415,0.74726583,111470.0,111460.0,1e-08]
[1760243082851,0.74526583,111470.0,111460.0,1e-08]
[1760243083303,0.77024168,111470.0,111460.0,1e-08]
[1760243083510,0.82663973,111470.0,111460.0,1e-08]
[1760243083708,0.84035907,111470.0,111460.0,1e-08]
[1760243083990,0.94035906,111470.0,111460.0,1e-08]
[1760243086044,0.91637542,111470.0,111460.0,1e-08]
[1760243089591,0.89239957,111470.0,111460.0,1e-08]
[1760243090682,0.86821321,111470.0,111460.0,1e-08]
[1760243092825,0.67871493,111470.0,111460.0,1e-08]
[1760243093033,0.64630052,111470.0,111460.0,1e-08]
[1760243095253,0.62207948,111470.0,111460.0,1e-08]
[1760243098657,0.59192758,111470.0,111460.0,1e-08]
[1760243099550,0.59092758,111470.0,111460.0,1e-08]
[1760243099752,0.59192758,111470.0,111460.0,1e-08]
[1760243099954,0.67148313,111470.0,111460.0,1e-08]
[1760243101204,0.59192758,111470.0,111460.0,1e-08]
[1760243101620,0.57259151,111470.0,111460.0,1e-08]
[1760243101898,0.23259151,111470.0,111460.0,1e-08]
[1760243102123,0.20741943,111470.0,111460.0,1e-08]
[1760243102344,0.20741943,111470.0,111460.0,0.20016657]
[1760243102550,0.20741943,111470.0,111460.0,0.02073001]
[1760243103248,0.54741943,111470.0,111460.0,0.02073001]
[1760243103458,0.54741943,111470.0,111460.0,1e-08]
[1760243106981,0.57139711,111470.0,111460.0,1e-08]
[1760243107154,0.50502548,111470.0,111460.0,1e-08]
[1760243107356,0.53202308,111470.0,111460.0,1e-08]
[1760243109891,0.5080454,111470.0,111460.0,1e-08]
[1760243114815,0.20641807,111470.0,111460.0,0.02073001]
[1760243115023,0.54641807,111470.0,111460.0,0.02073001]
[1760243115786,0.54641807,111470.0,111460.0,0.06707001]
[1760243115987,0.3669976,111470.0,111460.0,0.24650657]
[1760243116199,0.34,111470.0,111460.0,0.24650657]
[1760243117336,0.51942047,111470.0,111460.0,0.24650657]
[1760243118769,0.18040692,111480.0,111470.0,0.17942047]
[1760243118770,0.00100255,111480.0,111470.0,0.17942047]
[1760243118943,0.34100255,111480.0,111470.0,0.24649047]
[1760243119554,0.00100255,111480.0,111470.0,0.24649047]
[1760243120480,0.00200255,111480.0,111470.0,0.24649047]
[1760243121240,0.00100255,111480.0,111470.0,0.24649047]
[1760243124530,0.00100255,111480.0,111470.0,0.24749047]
[1760243134842,0.00100255,111480.0,111470.0,0.24649047]
[1760243135039,0.18040692,111480.0,111470.0,0.24649047]
[1760243135388,0.18040692,111480.0,111470.0,0.06707]
[1760243135797,0.18040692,111480.0,111470.0,0.03687]
[1760243136836,0.17942047,111470.0,111460.0,0.01614001]
[1760243137250,0.17942047,111470.0,111460.0,0.06833001]
[1760243138409,0.17942047,111470.0,111460.0,0.24776657]
[1760243139222,0.17942047,111470.0,111460.0,1e-08]
[1760243139421,0.51942047,111470.0,111460.0,1e-08]
[1760243139853,0.51942047,111470.0,111460.0,0.02170001]
[1760243140073,0.51942047,111470.0,111460.0,0.06698001]
[1760243140280,0.51942047,111470.0,111460.0,1e-08]
[1760243140686,0.51942047,111470.0,111460.0,0.03649001]
[1760243140842,0.34,111470.0,111460.0,0.24641657]
[1760243141028,0.18040692,111480.0,111460.0,0.24641657]
[1760243141241,0.18040692,111480.0,111470.0,0.04528]
[1760243141242,0.52040692,111480.0,111470.0,0.04528]
[1760243141653,0.52040692,111480.0,111470.0,0.06479]
[1760243141857,0.52040692,111480.0,111470.0,0.0343]
[1760243142471,0.52040692,111480.0,111470.0,0.21372047]
[1760243142677,0.52040692,111480.0,111470.0,0.0661]
[1760243142889,0.52040692,111480.0,111470.0,0.0651]
[1760243144119,0.52040692,111480.0,111470.0,0.24452047]
[1760243144260,0.52040692,111480.0,111470.0,0.0651]
[1760243144888,0.52040692,111480.0,111470.0,0.0333]
[1760243146472,0.17942047,111470.0,111460.0,0.22602657]
[1760243146923,0.17942047,111470.0,111460.0,0.24553657]
[1760243147857,0.4589077,111480.0,111460.0,0.24553657]
[1760243148055,0.4589077,111480.0,111460.0,0.21373657]
[1760243148748,0.4589077,111480.0,111460.0,1e-08]
[1760243148749,0.17942047,111470.0,111460.0,1e-08]
[1760243149174,0.17942047,111470.0,111460.0,0.01951001]
[1760243149817,0.17942047,111470.0,111460.0,1e-08]
[1760243155476,0.18042047,111470.0,111460.0,1e-08]
[1760243156043,0.17942047,111470.0,111460.0,1e-08]
[1760243156456,0.17942047,111470.0,111460.0,0.01951001]
[1760243156660,0.17942047,111470.0,111460.0,0.03451001]
[1760243156862,0.18042047,111470.0,111460.0,1e-08]
[1760243159412,0.2336935,111470.0,111460.0,1e-08]
[1760243159643,0.54478262,111470.0,111460.0,1e-08]
[1760243159857,0.57493452,111470.0,111460.0,1e-08]
[1760243160062,0.61871805,111470.0,111460.0,1e-08]
[1760243160731,0.62711034,111470.0,111460.0,1e-08]
[1760243161353,0.62611034,111470.0,111460.0,1e-08]
[1760243161551,0.73164545,111470.0,111460.0,1e-08]
[1760243161763,0.75097505,111470.0,111460.0,1e-08]
[1760243162588,0.75097421,111470.0,111460.0,1e-08]
[1760243164600,4.95642123,111470.0,111460.0,1e-08]
[1760243164820,4.97049271,111470.0,111460.0,1e-08]
[1760243165247,4.96949271,111470.0,111460.0,1e-08]
[1760243165662,4.97149271,111470.0,111460.0,1e-08]
[1760243166082,5.00390712,111470.0,111460.0,1e-08]
[1760243168609,0.17950098,111420.0,111410.0,0.10934362]
[1760243168814,0.51950098,111420.0,111410.0,0.0717733]
[1760243169014,0.51950098,111420.0,111410.0,0.00014968]
[1760243169220,0.51950098,111420.0,111410.0,0.00403925]
[1760243170358,0.53624586,111420.0,111410.0,0.00403925]
[1760243171431,0.17954933,111390.0,111380.0,0.01563]
[1760243171607,0.17958157,111370.0,111360.0,0.05335]
[1760243171808,0.17958157,111370.0,111360.0,0.0534998]
[1760243172011,0.17958157,111370.0,111360.0,0.0749698]
[1760243172364,0.51956545,111380.0,111360.0,0.1065998]
[1760243172524,0.53628368,111380.0,111360.0,0.1065998]
[1760243172732,0.17958157,111370.0,111360.0,0.28619717]
[1760243172904,0.51956545,111380.0,111360.0,0.28619717]
[1760243173110,0.53628368,111380.0,111360.0,0.28619717]
[1760243173297,0.17958157,111370.0,111360.0,0.25456717]
[1760243173506,0.17958157,111370.0,111360.0,0.0749698]
[1760243173711,0.17958157,111370.0,111360.0,0.1065998]
[1760243174008,0.17958157,111370.0,111360.0,0.2861975]
[1760243175394,0.19627143,111370.0,111360.0,0.2861975]
[1760243175781,0.19627143,111370.0,111360.0,0.0749698]
[1760243175982,0.19627143,111370.0,111360.0,0.0378698]
[1760243176611,0.19627143,111370.0,111360.0,0.0001498]
[1760243177365,0.19627143,111370.0,111360.0,0.00307849]
[1760243178000,0.53627143,111370.0,111360.0,0.00307849]
[1760243178207,0.56063358,111370.0,111360.0,0.00307849]
[1760243179110,0.56061709,111370.0,111360.0,0.00307849]
[1760243179310,0.63554462,111370.0,111360.0,0.00307849]
[1760243179954,0.56061709,111370.0,111360.0,0.00307849]
[1760243181439,0.58764038,111370.0,111360.0,0.00307849]
[1760243182264,0.61779228,111370.0,111360.0,0.00307849]
[1760243182446,0.54395985,111360.0,111350.0,0.0004]
[1760243182672,0.56063322,111360.0,111350.0,0.00089911]
[1760243183470,0.58765955,111360.0,111350.0,0.00089911]
[1760243183881,0.58769955,111360.0,111350.0,0.00089911]
[1760243186557,0.40810185,111360.0,111350.0,0.00089911]
[1760243186763,0.58769955,111360.0,111350.0,0.00089911]
[1760243188323,0.58769955,111360.0,111350.0,0.00148503]
[1760243191085,0.6596378,111360.0,111350.0,0.00148503]
[1760243191503,0.58769955,111360.0,111350.0,0.00148503]
[1760243194857,0.5633374,111360.0,111350.0,0.00148503]
[1760243195264,0.53631107,111360.0,111350.0,0.00148503]
[1760243197433,0.53631107,111360.0,111350.0,0.70759924]
[1760243197434,0.01671337,111360.0,111350.0,0.70759924]
[1760243197633,0.01671337,111360.0,111350.0,0.24665886]
[1760243198053,0.01671337,111360.0,111350.0,0.68963786]
[1760243198644,0.01671337,111360.0,111350.0,0.24665886]
[1760243199063,0.01671337,111360.0,111350.0,0.68963786]
[1760243199064,4e-05,111360.0,111350.0,0.68963786]
[1760243199391,4e-05,111360.0,111350.0,0.69063786]
[1760243199919,0.01681493,111360.0,111350.0,0.69063786]
[1760243200384,4e-05,111360.0,111350.0,0.69063786]
[1760243200791,4e-05,111360.0,111350.0,0.24765886]
[1760243201011,4e-05,111360.0,111350.0,0.69063786]
[1760243204621,4e-05,111360.0,111350.0,0.24765886]
[1760243207243,4e-05,111360.0,111350.0,0.69063786]
[1760243208028,0.00096378,111370.0,111360.0,0.6225767]
[1760243208306,0.00096378,111370.0,111360.0,0.6382667]
[1760243208566,0.00096378,111370.0,111360.0,0.2463177]
[1760243210965,0.18054535,111370.0,111360.0,0.2463177]
[1760243211175,0.18054535,111370.0,111360.0,0.06672]
[1760243211378,0.18054535,111370.0,111360.0,0.2463177]
[1760243212003,0.1795977,111360.0,111350.0,0.01737503]
[1760243212426,0.1795977,111360.0,111350.0,0.03683503]
[1760243212633,0.1795977,111360.0,111350.0,0.00148503]
[1760243212838,0.1795977,111360.0,111350.0,0.02094503]
[1760243213056,0.1795977,111360.0,111350.0,0.00148503]
[1760243216953,0.1795977,111360.0,111350.0,0.02094503]
[1760243217159,0.1795977,111360.0,111350.0,0.00148503]
[1760243227145,0.20756864,111370.0,111350.0,0.06868503]
[1760243227316,0.00096378,111370.0,111360.0,0.2256477]
[1760243227519,0.00096378,111370.0,111360.0,0.2467977]
[1760243235041,0.00096378,111370.0,111360.0,0.62412151]
[1760243237523,0.00096378,111370.0,111360.0,0.2467977]
[1760243237869,0.00096378,111370.0,111360.0,0.62412151]
[1760243241701,0.00096378,111370.0,111360.0,0.62512151]
[1760243242122,0.00096378,111370.0,111360.0,0.2477977]
[1760243245190,0.00096378,111370.0,111360.0,0.62512151]
[1760243245555,0.00096378,111370.0,111360.0,0.2477977]
[1760243247437,0.00096378,111370.0,111360.0,0.2855577]
[1760243249901,0.00096378,111370.0,111360.0,0.66288151]
[1760243251374,0.00096378,111370.0,111360.0,0.2855577]
[1760243251575,0.00096378,111370.0,111360.0,0.72821395]
[1760243251788,0.18852936,111390.0,111370.0,0.17957168]
[1760243251988,0.18852936,111390.0,111380.0,0.02102]
[1760243252186,0.18852936,111390.0,111380.0,0.03627]
[1760243253057,0.18852936,111390.0,111380.0,0.06659]
[1760243253266,0.18852936,111390.0,111380.0,0.24615545]
[1760243253478,0.18852936,111390.0,111380.0,0.21583545]
[1760243253712,0.18852936,111390.0,111380.0,0.24615545]
[1760243255452,0.18852679,111390.0,111380.0,0.24615545]
[1760243255664,0.18852679,111390.0,111380.0,0.03627]
[1760243256293,0.17956545,111380.0,111370.0,0.01525]
[1760243256505,0.17956545,111380.0,111370.0,0.21585157]
[1760243256715,0.17956545,111380.0,111370.0,0.24617157]
[1760243257325,0.18015117,111380.0,111370.0,0.24617157]
[1760243257460,0.18015117,111380.0,111370.0,0.06659]
[1760243257675,0.18015117,111380.0,111370.0,0.24617157]
[1760243258875,0.00058572,111380.0,111370.0,0.24617157]
[1760243259265,0.18015117,111380.0,111370.0,0.24617157]
[1760243259466,0.18015117,111380.0,111370.0,0.03627]
[1760243259892,0.18015117,111380.0,111370.0,0.24617157]
[1760243260139,0.18015117,111380.0,111370.0,0.21585157]
[1760243260325,0.00058572,111380.0,111370.0,0.24617157]
[1760243263308,0.18015117,111380.0,111370.0,0.24617157]
[1760243263762,0.1795276,111380.0,111370.0,0.24617157]
[1760243264476,0.1795276,111380.0,111370.0,0.21585157]
[1760243265233,0.1795276,111380.0,111360.0,0.08576383]
[1760243265234,0.17958157,111370.0,111360.0,0.08576383]
[1760243265488,0.17958157,111370.0,111360.0,0.25371153]
[1760243265701,0.17958157,111370.0,111360.0,0.07411383]
[1760243265907,0.17958157,111370.0,111360.0,0.03872383]
[1760243266121,0.17958157,111370.0,111360.0,0.05877383]
[1760243267223,0.1795276,111380.0,111360.0,0.28601153]
[1760243267421,0.17958157,111370.0,111360.0,0.28601153]
[1760243268380,0.17958157,111370.0,111360.0,0.25431153]
[1760243270197,0.17958157,111370.0,111360.0,0.07471383]
[1760243270806,0.17958157,111370.0,111360.0,0.03872383]
[1760243271198,0.17958157,111370.0,111360.0,0.05877383]
[1760243271651,0.17958157,111370.0,111360.0,0.03872383]
[1760243271996,0.17958157,111370.0,111360.0,0.05877383]
[1760243272191,0.17958157,111370.0,111360.0,0.03872383]
[1760243273270,0.17958157,111370.0,111360.0,0.05877383]
[1760243276356,0.17958157,111370.0,111360.0,0.02101383]
[1760243277614,0.17958157,111370.0,111360.0,0.03695383]
[1760243278812,0.17958157,111370.0,111360.0,0.06865383]
[1760243280367,0.17958157,111370.0,111360.0,0.03695383]
[1760243281707,0.17958157,111370.0,111360.0,0.06895383]
[1760243282381,0.21554457,111390.0,111370.0,0.17958157]
[1760243282587,0.17954933,111390.0,111380.0,0.21607545]
[1760243282805,0.51954933,111390.0,111380.0,0.24807545]
[1760243283031,0.34,111390.0,111380.0,0.24807545]
[1760243283978,0.51954933,111390.0,111380.0,0.21607545]
[1760243284192,0.51954933,111390.0,111380.0,0.24807545]
[1760243284802,0.51954933,111390.0,111380.0,0.03651]
[1760243285648,0.51954933,111390.0,111370.0,0.20405064]
[1760243285863,0.51954933,111390.0,111370.0,0.22507064]
[1760243286273,0.51954933,111390.0,111370.0,0.25707064]
[1760243286472,0.51954933,111390.0,111380.0,0.19505545]
[1760243286676,0.51954933,111390.0,111380.0,0.21607545]
[1760243287516,0.51954933,111390.0,111380.0,0.24807545]
[1760243287739,0.51954933,111390.0,111380.0,0.21607545]
[1760243288253,0.52013498,111390.0,111380.0,0.21607545]
[1760243288662,0.52013498,111390.0,111380.0,0.24807545]
[1760243289072,0.52013498,111390.0,111380.0,0.06851]
[1760243289526,0.52013498,111390.0,111370.0,0.23700758]
[1760243289527,0.17956545,111380.0,111370.0,0.23700758]
[1760243289952,0.52013498,111390.0,111380.0,0.01549]
[1760243290171,0.52013498,111390.0,111380.0,0.03651]
[1760243291283,0.52013498,111390.0,111380.0,0.06851]
[1760243291506,0.52013498,111390.0,111380.0,0.03651]
[1760243292181,0.52013498,111390.0,111380.0,0.24807545]
[1760243292611,0.00058565,111390.0,111380.0,0.24807545]
[1760243293847,0.18013498,111390.0,111380.0,0.24807545]
[1760243294887,0.18013498,111390.0,111380.0,0.03651]
[1760243295094,0.18013498,111390.0,111380.0,0.24807545]
[1760243295297,0.00058565,111390.0,111380.0,0.24807545]
[1760243297508,0.00058565,111390.0,111380.0,0.69098284]
[1760243297914,0.00058565,111390.0,111380.0,0.69198284]
[1760243298175,0.00058565,111390.0,111380.0,0.72213474]
[1760243298379,0.00058565,111390.0,111380.0,0.74814029]
[1760243298586,0.00058565,111390.0,111380.0,0.74914029]
[1760243299206,0.00058565,111390.0,111380.0,1.08914029]
[1760243299622,0.00058565,111390.0,111380.0,1.53204768]
[1760243299835,0.00058565,111390.0,111380.0,1.61271383]
[1760243300378,0.00058565,111390.0,111380.0,1.61171383]
[1760243300818,0.00058565,111390.0,111380.0,1.61271383]
[1760243301229,0.00058565,111390.0,111380.0,1.61171383]
[1760243301434,0.00058565,111390.0,111380.0,1.53104768]
[1760243301642,0.00058565,111390.0,111380.0,1.63771382]
[1760243302016,0.00058565,111390.0,111380.0,1.63671382]
[1760243302441,0.00058565,111390.0,111380.0,1.63871382]
[1760243302836,0.00058565,111390.0,111380.0,1.55804767]
[1760243303047,0.00058565,111390.0,111380.0,1.11514028]
[1760243304967,0.00058565,111390.0,111380.0,0.67223289]
[1760243305176,0.00058565,111390.0,111380.0,0.617081]
[1760243305510,0.00058565,111390.0,111380.0,1.05998839]
[1760243306406,0.00058565,111390.0,111380.0,1.09014029]
[1760243306832,0.00058565,111390.0,111380.0,1.08814029]
[1760243307233,0.00058565,111390.0,111380.0,1.08914029]
[1760243312622,0.00058565,111390.0,111380.0,0.6462329]
[1760243312938,0.00058565,111390.0,111380.0,1.08914029]
[1760243313138,1e-08,111390.0,111380.0,1.53204768]
[1760243313562,1e-08,111390.0,111380.0,1.55704767]
[1760243313960,1e-08,111390.0,111380.0,1.11414028]
[1760243314162,4.001e-05,111390.0,111380.0,1.11414028]
[1760243314771,4.001e-05,111390.0,111380.0,1.15190028]
[1760243315984,4.001e-05,111390.0,111380.0,1.12690029]
[1760243321961,4.001e-05,111390.0,111380.0,0.6839929]
[1760243322780,4.001e-05,111390.0,111380.0,0.6829929]
[1760243322982,4.001e-05,111390.0,111380.0,0.6839929]
[1760243323178,4.001e-05,111390.0,111380.0,1.12690029]
[1760243323626,4.001e-05,111390.0,111380.0,0.6839929]